{"text_format":"3","workbook":"xlsx","n_sheets":1,"sheets":["行政许可信息管理"],"read":"whole","date_system":"1900"}

{"sheet":"行政许可信息管理","index":0,"n_rows":28,"n_cols":10,"rows_kept":28,"merged":[[0,0,0,9]]}
["第一师阿拉尔市水利局2025年第三季度涉企行政审批公示"]
["序号","行政相对人名称","行政相对人代码(统一社会信用代码)","法定代表人","行政许可决定文书名称","行政许可决定文书号","许可内容","许可决定日期","有效期自","许可机关"]
[1,"阿拉尔市新鑫国有资本投资运营(集团)有限责任公司","91659002556477381L","陈俊","关于阿克苏阿拉尔高新技术产业开发纺织服装片区无纺布产业园项目（二期）准予行政许可决定书","一师水许可决〔2025〕4号","批复同意该企业水土保持方案","2025-07-04",{"$f":"H3","v":"2025-07-04"},"新疆生产建设兵团第一师水利局(阿拉尔市水利局)"]
[2,"新疆生产建设兵团天盈石油化工股份有限公司","91659002098615619B","刘国东","关于天盈石化20万吨/年合成气制乙二醇综合技术改造项目准予行政许可决定书","一师水许可决〔2025〕5号","批复同意该企业水土保持方案","2025-07-08",{"$f":"H4","v":"2025-07-08"},"新疆生产建设兵团第一师水利局(阿拉尔市水利局)"]
[3,"新疆城实商贸有限公司","91659002MA7NC38Y3C","刘智昌","关于新疆城实商贸有限公司十一团1号建筑用砂矿准予行政许可决定书","一师水许可决〔2025〕6号","批复同意该企业水土保持方案","2025-07-11","2025-07-11","新疆生产建设兵团第一师水利局(阿拉尔市水利局)"]
[4,"阿拉尔明德教育科技发展有限公司","91659002MAE2XMCM0X","易晨","关于贵阳信息科技学院阿拉尔校区一期二批次建设项目准予行政许可决定书","一师水许可决〔2025〕7号","批复同意该企业水土保持方案","2025-07-16","2025-07-16","新疆生产建设兵团第一师水利局(阿拉尔市水利局)"]
[5,"阿拉尔市荣华棉纺织有限公司","91659002MAD3B8L25A","黄适可","关于150台喷气织机及纺纱产业链配套项目准予行政许可决定书","一师水许可决〔2025〕8号","批复同意该企业水土保持方案","2025-07-16","2025-07-16","新疆生产建设兵团第一师水利局(阿拉尔市水利局)"]
[6,"新疆生产建设兵团第一师一团农业和林业草原中心","12990101MB15903212","王铭","关于第一师一团沉砂调节池建设项目准予行政许可决定书","一师水许可决〔2025〕10号","批复同意该企业水土保持方案","2025-08-01","2025-08-01","新疆生产建设兵团第一师水利局(阿拉尔市水利局)"]
[7,"新疆生产建设兵团第一师八团农业和林业草原中心","12990100MB1896312Q","樊飞","关于2023年第一师八团高标准果园建设项目准予行政许可决定书","一师水许可决〔2025〕11号","批复同意该企业水土保持方案","2025-07-29","2025-07-29","新疆生产建设兵团第一师水利局(阿拉尔市水利局)"]
[8,"新疆生产建设兵团第一师住房和城乡发展服务中心","11990100MB1332875F‌","欧阳灿明","关于第一师阿拉尔市阿塔路（昆仑大街-东环路）城区配套提升项目准予行政许可决定书","一师水许可决〔2025〕12号","批复同意该企业水土保持方案","2025-08-07","2025-08-07","新疆生产建设兵团第一师水利局(阿拉尔市水利局)"]
[9,"新疆生产建设兵团第一师住房和城乡发展服务中心","11990100MB1332875F‌","欧阳灿明","关于第一师阿拉尔市阿塔公路（天山大街-阿阿高速匝道）改造提升建设项目准予行政许可决定书","一师水许可决〔2025〕13号","批复同意该企业水土保持方案","2025-08-07","2025-08-07","新疆生产建设兵团第一师水利局(阿拉尔市水利局)"]
[10,"新疆生产建设兵团第一师九团农业和林业草原中心","12990100MB1896224A","柯有忠","关于第一师九团二连10斗田间基础设施改造项目准予行政许可决定书","一师水许可决〔2025〕14号","批复同意该企业水土保持方案","2025-08-06","2025-08-06","新疆生产建设兵团第一师水利局(阿拉尔市水利局)"]
[11,"新疆生产建设兵团第一师二团城镇和生态保护中心","12990100MB1858738K","麻振扬","关于第一师二团城镇供水安全配套工程建设项目准予行政许可决定书","一师水许可决〔2025〕15号","批复同意该企业水土保持方案","2025-08-07","2025-08-07","新疆生产建设兵团第一师水利局(阿拉尔市水利局)"]
[12,"新疆生产建设兵团第一师水利工程管理服务中心","12990100MB1C89992B","马令民","关于第一师百里画廊水系疏浚工程准予行政许可决定书","一师水许可决〔2025〕16号","批复同意该企业水土保持方案","2025-08-08","2025-08-08","新疆生产建设兵团第一师水利局(阿拉尔市水利局)"]
[13,"阿拉尔市拓华国有资产经营有限公司","91659002MABKYX4P0D","李洪斌","关于第一师十六团标准化蛋鸡场建设项目准予行政许可决定书","一师水许可决〔2025〕17号","批复同意该企业水土保持方案","2025-08-08","2025-08-08","新疆生产建设兵团第一师水利局(阿拉尔市水利局)"]
[14,"阿拉尔市供销良品生态农业发展有限公司","91659002MACLNUHA5M","黄荣本","关于第一师阿拉尔市水稻育秧基地建设项目准予行政许可决定书","一师水许可决〔2025〕19号","批复同意该企业水土保持方案","2025-08-26","2025-08-26","新疆生产建设兵团第一师水利局(阿拉尔市水利局)"]
[15,"新疆生产建设兵团第一师十三团城镇和生态保护中心","12990100MB18597302","秦剑峰","关于第一师阿拉尔市十三团老旧小区改造项目准予行政许可决定书","一师水许可决〔2025〕20号","批复同意该企业水土保持方案","2025-08-26","2025-08-26","新疆生产建设兵团第一师水利局(阿拉尔市水利局)"]
[16,"南疆能源（集团）有限责任公司","916590027108111826","张强","关于阿拉尔经济技术开发区背压热电联产项目输电线路工程准予行政许可决定书","一师水许可决〔2025〕21号","批复同意该企业水土保持方案","2025-08-29","2025-08-29","新疆生产建设兵团第一师水利局(阿拉尔市水利局)"]
[17,"阿拉尔市托喀依乡农业林业草原和生态保护中心","12990100MB09566518","李佳骏","关于2025年第一师托喀依乡高标准农田建设项目（一）准予行政许可决定书","一师水许可决〔2025〕22号","批复同意该企业水土保持方案","2025-09-04","2025-09-04","新疆生产建设兵团第一师水利局(阿拉尔市水利局)"]
[18,"阿拉尔市托喀依乡农业林业草原和生态保护中心","12990100MB09566518","李佳骏","关于2025年第一师托喀依乡高标准农田建设项目（二）准予行政许可决定书","一师水许可决〔2025〕23号","批复同意该企业水土保持方案","2025-09-04","2025-09-04","新疆生产建设兵团第一师水利局(阿拉尔市水利局)"]
[19,"阿拉尔经济技术开发区招商局","11990100MB1J31244N","田忠成","关于阿克苏阿拉尔高新技术产业开发区西区道路建设项目准予行政许可决定书","一师水许可决〔2025〕24号","批复同意该企业水土保持方案","2025-09-04","2025-09-04","新疆生产建设兵团第一师水利局(阿拉尔市水利局)"]
[20,"第一师住房和城乡发展服务中心","11990100MB1332875F‌","欧阳灿明","关于第一师阿拉尔市环城西路北延段建设项目准予行政许可决定书","一师水许可决〔2025〕25号","批复同意该企业水土保持方案","2025-09-04","2025-09-04","新疆生产建设兵团第一师水利局(阿拉尔市水利局)"]
[21,"新疆轻纺城投资有限公司","91659002MAEEPMX44R","傅飚","关于中国轻纺城综合性纺织品交易市场项目准予行政许可决定书","一师水许可决〔2025〕26号","批复同意该企业水土保持方案","2025-09-18","2025-09-18","新疆生产建设兵团第一师水利局(阿拉尔市水利局)"]
[22,"新疆佳源热力有限责任公司","91659002MADKFQ511K","董为强","关于第一师沙井子垦区集中供热项目准予行政许可决定书","一师水许可决〔2025〕27号","批复同意该企业水土保持方案","2025-09-19","2025-09-19","新疆生产建设兵团第一师水利局(阿拉尔市水利局)"]
[23,"新疆阿拉尔新苑房地产开发有限责任公司","91659002745247868N","何海","关于一师阿拉尔新苑林溪府小区建设项目准予行政许可决定书","一师水许可决〔2025〕29号","批复同意该企业水土保持方案","2025-09-19","2025-09-19","新疆生产建设兵团第一师水利局(阿拉尔市水利局)"]
[24,"第一师住房和城乡发展服务中心","11990100MB1332875F‌","欧阳灿明","关于第一师阿拉尔市胡杨林公园改造提升项目准予行政许可决定书","一师水许可决〔2025〕30号","批复同意该企业水土保持方案","2025-09-26","2025-09-26","新疆生产建设兵团第一师水利局(阿拉尔市水利局)"]
[25,"第一师住房和城乡发展服务中心","11990100MB1332875F‌","欧阳灿明","关于第一师阿拉尔市昆仑大街（玉阿路-塔里木大道）城区段提升改造项目准予行政许可决定书","一师水许可决〔2025〕31号","批复同意该企业水土保持方案","2025-09-26","2025-09-26","新疆生产建设兵团第一师水利局(阿拉尔市水利局)"]
[26,"第一师住房和城乡发展服务中心","11990100MB1332875F‌","欧阳灿明","关于第一师阿拉尔市玉阿路（青松路-工业园区立交桥）城区段改扩建建设项目准予行政许可决定书","一师水许可决〔2025〕32号","批复同意该企业水土保持方案","2025-09-26","2025-09-26","新疆生产建设兵团第一师水利局(阿拉尔市水利局)"]